fUST/lending_fUST_20250603
["ID","MTS","AMOUNT","RATE_DAILY","PERIOD"]
[363985613,1748952667019,-658.97,0.00019726,2]
[363985614,1748952667028,-440.0,0.00019726,2]
[363985615,1748952667038,-316.06492943,0.00019726,2]
[363985616,1748952667049,-300.0,0.00019726,2]
[363985617,1748952667059,-440.0,0.00019726,2]
[363985618,1748952667069,-793.39,0.00019726,2]
[363985619,1748952667079,-440.0,0.00019726,2]
[363985620,1748952667091,-440.0,0.00019726,2]
[363985621,1748952667101,-440.0,0.00019726,2]
[363985622,1748952667111,-910.15,0.00019726,2]
[363985623,1748952667121,-1158.85,0.00019726,2]
[363985624,1748952667131,-1354.75,0.00019726,2]
[363985625,1748952667142,-4178.31,0.00019726,2]
[363985626,1748952667152,-440.0,0.00019726,2]
[363985627,1748952667161,-440.0,0.00019726,2]
[363985628,1748952667171,-1406.66,0.00019726,2]
[363985629,1748952667183,-490.39,0.00019726,2]
[363985630,1748952667193,-4549.64,0.00019726,2]
[363985631,1748952667203,-6349.53,0.00019726,2]
[363985632,1748952667213,-464.87,0.00019726,2]
[363985633,1748952667223,-1054.94,0.00019726,2]
[363985634,1748952667233,-2078.29,0.00019726,2]
[363985635,1748952667243,-975.51,0.00019726,2]
[363985636,1748952667253,-440.0,0.00019726,2]
[363985637,1748952667263,-440.0,0.00019726,2]
[363985638,1748952667273,-1037.57,0.00019726,2]
[363985639,1748952667282,-2003.58,0.00019726,2]
[363985640,1748952667292,-650.22,0.00019726,2]
[363985641,1748952667301,-207.86789901,0.00019726,2]
[363985642,1748952667311,-494.09,0.00019726,2]
[363985643,1748952667322,-1252.89,0.00019726,2]
[363985644,1748952667332,-606.62,0.00019726,2]
[363985645,1748952667342,-440.0,0.00019726,2]
[363985646,1748952667353,-440.0,0.00019726,2]
[363985647,1748952667364,-3573.9,0.00019726,2]
[363985648,1748952667373,-440.0,0.00019726,2]
[363985649,1748952667383,-451.0,0.00019726,2]
[363985650,1748952667394,-440.0,0.00019726,2]
[363985651,1748952667403,-510.62,0.00019726,2]
[363985652,1748952667413,-4695.14,0.00019726,2]
[363985653,1748952667423,-444.57,0.00019726,2]
[363985654,1748952667435,-1259.89,0.00019726,2]
[363985655,1748952667444,-460.72,0.00019726,2]
[363985656,1748952667453,-508.42,0.00019726,2]
[363985657,1748952667462,-1819.71,0.00019726,2]
[363985658,1748952667472,-2376.31,0.00019726,2]
[363985659,1748952667482,-440.0,0.00019726,2]
[363985660,1748952667492,-568.6,0.00019726,2]
[363985661,1748952667502,-440.0,0.00019726,2]
[363985662,1748952667511,-440.0,0.00019726,2]
[363985663,1748952667521,-772.08,0.00019726,2]
[363985664,1748952667530,-858.11,0.00019726,2]
[363985665,1748952667540,-806.74,0.00019726,2]
[363985666,1748952667551,-534.92,0.00019726,2]
[363985667,1748952667561,-948.51,0.00019726,2]
[363985668,1748952667571,-541.04,0.00019726,2]
[363985669,1748952667581,-2900.83,0.00019726,2]
[363985670,1748952667590,-3172.41,0.00019726,2]
[363985671,1748952667600,-944.55,0.00019726,2]
[363985672,1748952667610,-440.0,0.00019726,2]
[363985673,1748952667620,-750.33,0.00019726,2]
[363985674,1748952667631,-491.8,0.00019726,2]
[363985675,1748952667641,-440.0,0.00019726,2]
[363985676,1748952667651,-5029.01,0.00019726,2]
[363985677,1748952667660,-1740.48,0.00019726,2]
[363985678,1748952667670,-5951.72,0.00019726,2]
[363985679,1748952667682,-1274.01,0.00019726,2]
[363985680,1748952667693,-5342.18,0.00019726,2]
[363985681,1748952667703,-440.0,0.00019726,2]
[363985682,1748952667714,-17743.27,0.00019726,2]
[363985683,1748952667731,-217.15233878,0.00019728,2]
[363985684,1748952667742,-225.18697532,0.00019783,2]
[363985685,1748952667751,-602.672,0.00019813,2]
[363985686,1748952667760,-1800.0,0.00019813,2]
[363985687,1748952667769,-1500.0,0.00019813,2]
[363985688,1748952667778,-233.51889341,0.00019838,2]
[363985689,1748952667788,-242.15909246,0.00019893,2]
[363985690,1748952667798,-151.0,0.00019914,13]
[363985691,1748952667809,-3488.49746002,0.00019934,2]
[363985692,1748952667819,-251.11897888,0.00019948,2]
[363985693,1748952667828,-505.00855098,0.00019973,2]
[363985694,1748952667838,-423.63107087,0.00019984,2]
[363985695,1748952667847,-160.0,0.00019984,2]
[363985696,1748952667857,-229.42821335,0.00019985,2]
[363985697,1748952667868,-160.0,0.00019985,2]
[363985698,1748952667878,-160.0,0.00019985,2]
[363985699,1748952667888,-160.0,0.00019985,2]
[363985700,1748952667898,-1090.69,0.00019999,2]
[363985701,1748952667908,-440.0,0.00019999,2]
[363985702,1748952667919,-51224.57886112,0.0002,2]
[363985703,1748952667930,-1500.0,0.0002,2]
[363985704,1748952667940,-536.34,0.0002,2]
[363985705,1748952667950,-335.961547,0.0002,2]
[363985706,1748952667959,-335.961547,0.0002,2]
[363985707,1748952667969,-730.994061,0.0002,2]
[363985708,1748952667979,-730.994061,0.0002,2]
[363985709,1748952667990,-705.527346,0.0002,2]
[363985710,1748952668000,-705.527346,0.0002,2]
[363985711,1748952668010,-398.848346,0.0002,2]
[363985712,1748952668020,-440.0,0.0002,2]
[363985713,1748952668031,-195.040772,0.0002,2]
[363985714,1748952668041,-195.040772,0.0002,2]
[363985715,1748952668052,-151.0,0.0002,2]
[363985716,1748952668061,-528.93,0.0002,2]
[363985717,1748952668071,-151.0,0.0002,2]
[363985718,1748952668081,-275.133276,0.0002,2]
[363985719,1748952668090,-440.0,0.0002,2]
[363985720,1748952668100,-155.01209388,0.0002,2]
[363985721,1748952668110,-1154.297986,0.0002,2]
[363985722,1748952668120,-1154.297986,0.0002,2]
[363985723,1748952668130,-505.159112,0.0002,2]
[363985724,1748952668140,-505.159112,0.0002,2]
[363985725,1748952668150,-768.032153,0.0002,2]
[363985726,1748952668160,-768.032153,0.0002,2]
[363985727,1748952668169,-3956.175787,0.0002,2]
[363985728,1748952668180,-962.74,0.0002,2]
[363985729,1748952668189,-3956.175787,0.0002,2]
[363985730,1748952668198,-749.18,0.0002,2]
[363985731,1748952668207,-440.0,0.0002,2]
[363985732,1748952668216,-200.0,0.0002,2]
[363985733,1748952668225,-440.0,0.0002,2]
[363985734,1748952668234,-929.53,0.0002,2]
[363985735,1748952668243,-440.0,0.0002,2]
[363985736,1748952668252,-502.65,0.0002,2]
[363985737,1748952668261,-489.81,0.0002,2]
[363985738,1748952668271,-440.0,0.0002,2]
[363985739,1748952668280,-1260.085886,0.0002,2]
[363985740,1748952668289,-1260.085893,0.0002,2]
[363985741,1748952668298,-324.29511084,0.0002,2]
[363985742,1748952668307,-775.51,0.0002,2]
[363985743,1748952668316,-440.0,0.0002,2]
[363985744,1748952668326,-440.0,0.0002,2]
[363985745,1748952668335,-830.89,0.0002,2]
[363985746,1748952668344,-721.62,0.0002,2]
[363985747,1748952668353,-658.97,0.0002,2]
[363985748,1748952668362,-440.0,0.0002,2]
[363985749,1748952668371,-227.51,0.0002,2]
[363985750,1748952668381,-793.39,0.0002,2]
[363985751,1748952668391,-544.24,0.0002,2]
[363985752,1748952668401,-440.0,0.0002,2]
[363985753,1748952668411,-440.0,0.0002,2]
[363985754,1748952668421,-910.15,0.0002,2]
[363985755,1748952668432,-1158.85,0.0002,2]
[363985756,1748952668443,-1354.75,0.0002,2]
[363985757,1748952668453,-4178.31,0.0002,2]
[363985758,1748952668464,-440.0,0.0002,2]
[363985759,1748952668473,-440.0,0.0002,2]
[363985760,1748952668482,-1406.66,0.0002,2]
[363985761,1748952668492,-490.39,0.0002,2]
[363985762,1748952668502,-4549.64,0.0002,2]
[363985763,1748952668512,-6349.53,0.0002,2]
[363985764,1748952668521,-464.87,0.0002,2]
[363985765,1748952668531,-1054.94,0.0002,2]
[363985766,1748952668542,-2078.29,0.0002,2]
[363985767,1748952668552,-975.51,0.0002,2]
[363985768,1748952668562,-440.0,0.0002,2]
[363985769,1748952668572,-262.47085528,0.0002,2]
[363985770,1748952668581,-1037.57,0.0002,2]
[363985771,1748952668590,-2003.58,0.0002,2]
[363985772,1748952668599,-650.22,0.0002,2]
[363985773,1748952668609,-494.09,0.0002,2]
[363985774,1748952668620,-1252.89,0.0002,2]
[363985775,1748952668630,-606.62,0.0002,2]
[363985776,1748952668640,-440.0,0.0002,2]
[363985777,1748952668651,-440.0,0.0002,2]
[363985778,1748952668662,-3573.9,0.0002,2]
[363985779,1748952668671,-440.0,0.0002,2]
[363985780,1748952668683,-556.00904347,0.0002,2]
[363985781,1748952668693,-510.62,0.0002,2]
[363985782,1748952668703,-4695.14,0.0002,2]
[363985783,1748952668714,-444.57,0.0002,2]
[363985784,1748952668728,-1259.89,0.0002,2]
[363985785,1748952668737,-460.72,0.0002,2]
[363985786,1748952668746,-508.42,0.0002,2]
[363985787,1748952668758,-1819.71,0.0002,2]
[363985788,1748952668768,-2376.31,0.0002,2]
[363985789,1748952668778,-290.0,0.0002,2]
[363985790,1748952668787,-568.6,0.0002,2]
[363985791,1748952668798,-440.0,0.0002,2]
[363985792,1748952668809,-440.0,0.0002,2]
[363985793,1748952668819,-772.08,0.0002,2]
[363985794,1748952668829,-858.11,0.0002,2]
[363985795,1748952668839,-806.74,0.0002,2]
[363985796,1748952668850,-534.92,0.0002,2]
[363985797,1748952668860,-948.51,0.0002,2]
[363985798,1748952668870,-541.04,0.0002,2]
[363985799,1748952668880,-2900.29192335,0.0002,2]
[363985800,1748952669278,-0.53807665,0.0002,2]
[363985801,1748952669288,-3172.41,0.0002,2]
[363985802,1748952669298,-944.55,0.0002,2]
[363985803,1748952669308,-440.0,0.0002,2]
[363985804,1748952669318,-750.33,0.0002,2]
[363985805,1748952669330,-491.8,0.0002,2]
[363985806,1748952669341,-440.0,0.0002,2]
[363985807,1748952669351,-5029.01,0.0002,2]
[363985808,1748952669362,-1740.48,0.0002,2]
[363985809,1748952669372,-5951.72,0.0002,2]
[363985810,1748952669382,-1274.01,0.0002,2]
[363985811,1748952669392,-5342.18,0.0002,2]
[363985812,1748952669401,-440.0,0.0002,2]
[363985813,1748952669411,-17743.27,0.0002,2]
[363985814,1748952669420,-260.4103811,0.00020003,2]
[363985815,1748952669432,-6899.50677586,0.0002003,2]
[363985816,1748952669443,-3273.50269134,0.00020038,2]
[363985817,1748952669453,-270.0455652,0.00020058,2]
[363985818,1748952669463,-280.03725112,0.00020113,2]
[363985819,1748952669473,-290.39862941,0.00020168,2]
[363985820,1748952669483,-196.655076,0.00020187,2]
[363985821,1748952669493,-151.0,0.000202,15]
[363985822,1748952669504,-3488.49746002,0.0002021,2]
[363985823,1748952669514,-301.1433787,0.00020223,2]
[363985824,1748952669525,-536.34,0.00020273,2]
[363985825,1748952669535,-705.527346,0.00020273,2]
[363985826,1748952669545,-705.527346,0.00020273,2]
[363985827,1748952669554,-440.0,0.00020273,2]
[363985828,1748952669565,-195.040772,0.00020273,2]
[363985829,1748952669575,-195.040772,0.00020273,2]
[363985830,1748952669585,-151.0,0.00020273,2]
[363985831,1748952669595,-528.93,0.00020273,2]
[363985832,1748952669606,-151.0,0.00020273,2]
[363985833,1748952669616,-440.0,0.00020273,2]
[363985834,1748952669627,-505.159112,0.00020273,2]
[363985835,1748952669638,-505.159112,0.00020273,2]
[363985836,1748952669648,-3956.175787,0.00020273,2]
[363985837,1748952669657,-962.74,0.00020273,2]
[363985838,1748952669667,-3956.175787,0.00020273,2]
[363985839,1748952669677,-749.18,0.00020273,2]
[363985840,1748952669687,-440.0,0.00020273,2]
[363985841,1748952669697,-440.0,0.00020273,2]
[363985842,1748952669706,-929.53,0.00020273,2]
[363985843,1748952669717,-440.0,0.00020273,2]
[363985844,1748952669728,-502.65,0.00020273,2]
[363985845,1748952669738,-489.81,0.00020273,2]
[363985846,1748952669748,-440.0,0.00020273,2]
[363985847,1748952669759,-775.51,0.00020273,2]
[363985848,1748952669771,-440.0,0.00020273,2]
[363985849,1748952669781,-420.22298708,0.00020273,2]
[363985850,1748952669791,-830.89,0.00020273,2]
[363985851,1748952669804,-721.62,0.00020273,2]
[363985852,1748952669814,-658.97,0.00020273,2]
[363985853,1748952669824,-440.0,0.00020273,2]
[363985854,1748952669834,-793.39,0.00020273,2]
[363985855,1748952669843,-440.0,0.00020273,2]
[363985856,1748952669854,-1090.69,0.00020273,2]
[363985857,1748952669863,-440.0,0.00020273,2]
[363985858,1748952669874,-910.15,0.00020273,2]
[363985859,1748952669884,-440.0,0.00020273,2]
[363985860,1748952669894,-1158.85,0.00020273,2]
[363985861,1748952669905,-1354.75,0.00020273,2]
[363985862,1748952669915,-4178.31,0.00020273,2]
[363985863,1748952669926,-440.0,0.00020273,2]
[363985864,1748952669938,-455.13,0.00020273,2]
[363985865,1748952669948,-1406.66,0.00020273,2]
[363985866,1748952669959,-490.39,0.00020273,2]
[363985867,1748952669969,-4549.64,0.00020273,2]
[363985868,1748952669980,-6349.53,0.00020273,2]
[363985869,1748952669993,-464.87,0.00020273,2]
[363985870,1748952670004,-1054.94,0.00020273,2]
[363985871,1748952670015,-2078.29,0.00020273,2]
[363985872,1748952670024,-975.51,0.00020273,2]
[363985873,1748952670034,-440.0,0.00020273,2]
[363985874,1748952670045,-1037.57,0.00020273,2]
[363985875,1748952670055,-2003.58,0.00020273,2]
[363985876,1748952670066,-650.22,0.00020273,2]
[363985877,1748952670076,-494.09,0.00020273,2]
[363985878,1748952670087,-1252.89,0.00020273,2]
[363985879,1748952670097,-606.62,0.00020273,2]
[363985880,1748952670107,-440.0,0.00020273,2]
[363985881,1748952670118,-440.0,0.00020273,2]
[363985882,1748952670128,-3573.9,0.00020273,2]
[363985883,1748952670139,-440.0,0.00020273,2]
[363985884,1748952670149,-510.62,0.00020273,2]
[363985885,1748952670159,-4695.14,0.00020273,2]
[363985886,1748952670170,-444.57,0.00020273,2]
[363985887,1748952670181,-1259.89,0.00020273,2]
[363985888,1748952670191,-460.72,0.00020273,2]
[363985889,1748952670201,-508.42,0.00020273,2]
[363985890,1748952670210,-1819.71,0.00020273,2]
[363985891,1748952670221,-2376.31,0.00020273,2]
[363985892,1748952670231,-568.6,0.00020273,2]
[363985893,1748952670240,-440.0,0.00020273,2]
[363985894,1748952670250,-583.85,0.00020273,2]
[363985895,1748952670260,-772.08,0.00020273,2]
[363985896,1748952670269,-858.11,0.00020273,2]
[363985897,1748952670279,-806.74,0.00020273,2]
[363985898,1748952670289,-534.92,0.00020273,2]
[363985899,1748952670299,-948.51,0.00020273,2]
[363985900,1748952670309,-541.04,0.00020273,2]
[363985901,1748952670319,-2900.83,0.00020273,2]
[363985902,1748952670329,-3172.41,0.00020273,2]
[363985903,1748952670339,-944.55,0.00020273,2]
[363985904,1748952670348,-440.0,0.00020273,2]
[363985905,1748952670358,-750.33,0.00020273,2]
[363985906,1748952670368,-491.8,0.00020273,2]
[363985907,1748952670378,-440.0,0.00020273,2]
[363985908,1748952670387,-5029.01,0.00020273,2]
[363985909,1748952670400,-1740.48,0.00020273,2]
[363985910,1748952670409,-5951.72,0.00020273,2]
[363985911,1748952670419,-1274.01,0.00020273,2]
[363985912,1748952670429,-5342.18,0.00020273,2]
[363985913,1748952670439,-440.0,0.00020273,2]
[363985914,1748952670450,-17743.27,0.00020273,2]
[363985915,1748952670460,-2000.0,0.00020361,2]
[363985916,1748952670469,-1800.0,0.00020361,2]
[363985917,1748952670478,-151.0,0.00020485,16]
[363985918,1748952670488,-3488.49746002,0.00020486,3]
[363985919,1748952670498,-536.34,0.00020547,2]
[363985920,1748952670507,-426.30243607,0.00020547,2]
[363985921,1748952670516,-528.93,0.00020547,2]
[363985922,1748952670526,-440.0,0.00020547,2]
[363985923,1748952670536,-962.74,0.00020547,2]
[363985924,1748952670545,-749.18,0.00020547,2]
[363985925,1748952670555,-440.0,0.00020547,2]
[363985926,1748952670565,-440.0,0.00020547,2]
[363985927,1748952670575,-929.53,0.00020547,2]
[363985928,1748952670585,-527.2,0.00020547,2]
[363985929,1748952670594,-502.65,0.00020547,2]
[363985930,1748952670604,-489.81,0.00020547,2]
[363985931,1748952670614,-440.0,0.00020547,2]
[363985932,1748952670624,-775.51,0.00020547,2]
[363985933,1748952670635,-440.0,0.00020547,2]
[363985934,1748952670644,-830.89,0.00020547,2]
[363985935,1748952670655,-721.62,0.00020547,2]
[363985936,1748952670664,-658.97,0.00020547,2]
[363985937,1748952670674,-440.0,0.00020547,2]
[363985938,1748952670685,-793.39,0.00020547,2]
[363985939,1748952670694,-440.0,0.00020547,2]
[363985940,1748952670703,-1090.69,0.00020547,2]
[363985941,1748952670713,-440.0,0.00020547,2]
[363985942,1748952670726,-910.15,0.00020547,2]
[363985943,1748952670734,-440.0,0.00020547,2]
[363985944,1748952670743,-1158.85,0.00020547,2]
[363985945,1748952670752,-1354.75,0.00020547,2]
[363985946,1748952670763,-4178.31,0.00020547,2]
[363985947,1748952670772,-440.0,0.00020547,2]
[363985948,1748952670782,-1406.66,0.00020547,2]
[363985949,1748952670791,-490.39,0.00020547,2]
[363985950,1748952670800,-4549.64,0.00020547,2]
[363985951,1748952670811,-6349.53,0.00020547,2]
[363985952,1748952670821,-121.55837308,0.00020547,2]
[363985953,1748952670835,-343.31162692,0.00020547,2]
[363985954,1748952670845,-1054.94,0.00020547,2]
[363985955,1748952670854,-2078.29,0.00020547,2]
[363985956,1748952670863,-975.51,0.00020547,2]
[363985957,1748952670873,-440.0,0.00020547,2]
[363985958,1748952670882,-1037.57,0.00020547,2]
[363985959,1748952670892,-2003.58,0.00020547,2]
[363985960,1748952670902,-650.22,0.00020547,2]
[363985961,1748952670912,-494.09,0.00020547,2]
[363985962,1748952670922,-1252.89,0.00020547,2]
[363985963,1748952670932,-606.62,0.00020547,2]
[363985964,1748952670942,-440.0,0.00020547,2]
[363985965,1748952670951,-488.98369834,0.00020547,2]
[363985966,1748952670962,-3573.9,0.00020547,2]
[363985967,1748952670971,-440.0,0.00020547,2]
[363985968,1748952670981,-510.62,0.00020547,2]
[363985969,1748952670991,-4695.14,0.00020547,2]
[363985970,1748952671000,-444.57,0.00020547,2]
[363985971,1748952671010,-1259.89,0.00020547,2]
[363985972,1748952671020,-460.72,0.00020547,2]
[363985973,1748952671029,-522.9,0.00020547,2]
[363985974,1748952671039,-508.42,0.00020547,2]
[363985975,1748952671049,-1819.71,0.00020547,2]
[363985976,1748952671059,-2376.31,0.00020547,2]
[363985977,1748952671068,-568.6,0.00020547,2]
[363985978,1748952671078,-440.0,0.00020547,2]
[363985979,1748952671087,-772.08,0.00020547,2]
[363985980,1748952671097,-858.11,0.00020547,2]
[363985981,1748952671107,-806.74,0.00020547,2]
[363985982,1748952671117,-534.92,0.00020547,2]
[363985983,1748952671127,-948.51,0.00020547,2]
[363985984,1748952671137,-541.04,0.00020547,2]
[363985985,1748952671146,-2900.83,0.00020547,2]
[363985986,1748952671156,-3172.41,0.00020547,2]
[363985987,1748952671166,-944.55,0.00020547,2]
[363985988,1748952671174,-440.0,0.00020547,2]
[363985989,1748952671184,-750.33,0.00020547,2]
[363985990,1748952671194,-491.8,0.00020547,2]
[363985991,1748952671203,-440.0,0.00020547,2]
[363985992,1748952671212,-5029.01,0.00020547,2]
[363985993,1748952671221,-1740.48,0.00020547,2]
[363985994,1748952671229,-5951.72,0.00020547,2]
[363985995,1748952671237,-1274.01,0.00020547,2]
[363985996,1748952671246,-5342.18,0.00020547,2]
[363985997,1748952671255,-440.0,0.00020547,2]
[363985998,1748952671263,-17743.27,0.00020547,2]
[363985999,1748952671273,-1466.18,0.000206,2]
[363986000,1748952671281,-2518.67,0.000206,2]
[363986001,1748952671290,-335.961547,0.000206,2]
[363986002,1748952671298,-335.961547,0.000206,2]
[363986003,1748952671306,-730.994061,0.000206,2]
[363986004,1748952671314,-730.994061,0.000206,2]
[363986005,1748952671323,-705.527346,0.000206,2]
[363986006,1748952671331,-705.527348,0.000206,2]
[363986007,1748952671340,-398.848346,0.000206,2]
[363986008,1748952671349,-195.040772,0.000206,2]
[363986009,1748952671359,-195.040764,0.000206,2]
[363986010,1748952671368,-1154.297986,0.000206,2]
[363986011,1748952671378,-1154.297986,0.000206,2]
[363986012,1748952671387,-505.159112,0.000206,2]
[363986013,1748952671396,-505.159104,0.000206,2]
[363986014,1748952671405,-768.032153,0.000206,2]
[363986015,1748952671415,-768.032153,0.000206,2]
[363986016,1748952671424,-3956.175787,0.000206,2]
[363986017,1748952671435,-3956.17578908,0.000206,2]
[363986018,1748952671444,-52341.49,0.000206,2]
[363986019,1748952671454,-6899.50677586,0.00020713,2]
[363986020,1748952671463,-3488.49746002,0.00020762,3]
[363986021,1748952671473,-151.0,0.00020771,18]
[363986022,1748952671482,-536.34,0.00020821,2]
[363986023,1748952671492,-160.0,0.00020821,2]
[363986024,1748952671501,-528.93,0.00020821,2]
[363986025,1748952671511,-440.0,0.00020821,2]
[363986026,1748952671522,-962.74,0.00020821,2]
[363986027,1748952671531,-749.18,0.00020821,2]
[363986028,1748952671541,-440.0,0.00020821,2]
[363986029,1748952671551,-440.0,0.00020821,2]
[363986030,1748952671560,-929.53,0.00020821,2]
[363986031,1748952671570,-502.65,0.00020821,2]
[363986032,1748952671579,-489.81,0.00020821,2]
[363986033,1748952671588,-462.19,0.00020821,2]
[363986034,1748952671598,-775.51,0.00020821,2]
[363986035,1748952671608,-440.0,0.00020821,2]
[363986036,1748952671617,-830.89,0.00020821,2]
[363986037,1748952671627,-721.62,0.00020821,2]
[363986038,1748952671637,-658.97,0.00020821,2]
[363986039,1748952671646,-440.0,0.00020821,2]
[363986040,1748952671656,-793.39,0.00020821,2]
[363986041,1748952671667,-440.0,0.00020821,2]
[363986042,1748952671677,-1090.69,0.00020821,2]
[363986043,1748952671688,-440.0,0.00020821,2]
[363986044,1748952671697,-910.15,0.00020821,2]
[363986045,1748952671706,-440.0,0.00020821,2]
[363986046,1748952671718,-1158.85,0.00020821,2]
[363986047,1748952671729,-1354.75,0.00020821,2]
[363986048,1748952671738,-4178.31,0.00020821,2]
[363986049,1748952671748,-440.0,0.00020821,2]
[363986050,1748952671759,-1406.66,0.00020821,2]
[363986051,1748952671768,-490.39,0.00020821,2]
[363986052,1748952671777,-4549.64,0.00020821,2]
[363986053,1748952671787,-6349.53,0.00020821,2]
[363986054,1748952671796,-464.87,0.00020821,2]
[363986055,1748952671807,-1054.94,0.00020821,2]
[363986056,1748952671816,-2078.29,0.00020821,2]
[363986057,1748952671826,-975.51,0.00020821,2]
[363986058,1748952671835,-440.0,0.00020821,2]
[363986059,1748952671844,-1037.57,0.00020821,2]
[363986060,1748952671854,-2003.58,0.00020821,2]
[363986061,1748952671864,-650.22,0.00020821,2]
[363986062,1748952671874,-494.09,0.00020821,2]
[363986063,1748952671884,-1252.89,0.00020821,2]
[363986064,1748952671893,-606.62,0.00020821,2]
[363986065,1748952671903,-440.0,0.00020821,2]
[363986066,1748952671913,-3573.9,0.00020821,2]
[363986067,1748952671922,-440.0,0.00020821,2]
[363986068,1748952671932,-510.62,0.00020821,2]
[363986069,1748952671941,-4695.14,0.00020821,2]
[363986070,1748952671951,-444.57,0.00020821,2]
[363986071,1748952672066,-1259.89,0.00020821,2]
[363986072,1748952672087,-460.72,0.00020821,2]
[363986073,1748952672098,-508.42,0.00020821,2]
[363986074,1748952672107,-1819.71,0.00020821,2]
[363986075,1748952672116,-2376.31,0.00020821,2]
[363986076,1748952672126,-568.6,0.00020821,2]
[363986077,1748952672136,-440.0,0.00020821,2]
[363986078,1748952672146,-772.08,0.00020821,2]
[363986079,1748952672155,-858.11,0.00020821,2]
[363986080,1748952672165,-806.74,0.00020821,2]
[363986081,1748952672175,-534.92,0.00020821,2]
[363986082,1748952672186,-948.51,0.00020821,2]
[363986083,1748952672196,-541.04,0.00020821,2]
[363986084,1748952672205,-2900.83,0.00020821,2]
[363986085,1748952672214,-3172.41,0.00020821,2]
[363986086,1748952672223,-944.55,0.00020821,2]
[363986087,1748952672233,-440.0,0.00020821,2]
[363986088,1748952672242,-750.33,0.00020821,2]
[363986089,1748952672252,-440.0,0.00020821,2]
[363986090,1748952672261,-5029.01,0.00020821,2]
[363986091,1748952672270,-491.8,0.00020821,2]
[363986092,1748952672280,-1740.48,0.00020821,2]
[363986093,1748952672291,-5951.72,0.00020821,2]
[363986094,1748952672300,-1274.01,0.00020821,2]
[363986095,1748952672310,-5342.18,0.00020821,2]
[363986096,1748952672319,-230.10470056,0.00020821,2]
[363986097,1748952672329,-17743.27,0.00020821,2]
[363986098,1748952672338,-207.10190885,0.00020896,2]
[363986099,1748952672348,-500.0,0.00020896,2]
[363986100,1748952672358,-500.0,0.00020896,2]
[363986101,1748952672367,-207.4,0.00020896,2]
[363986102,1748952672378,-500.0,0.00020896,2]
[363986103,1748952672389,-500.0,0.00020896,2]
[363986104,1748952672401,-500.0,0.00020896,2]
[363986105,1748952672410,-500.0,0.00020896,2]
[363986106,1748952672421,-500.0,0.00020896,2]
[363986107,1748952672431,-500.0,0.00020896,2]
[363986108,1748952672441,-500.0,0.00020896,2]
[363986109,1748952672450,-500.0,0.00020896,2]
[363986110,1748952672460,-500.0,0.00020896,2]
[363986111,1748952672470,-500.0,0.00020896,2]
[363986112,1748952672480,-500.0,0.00020896,2]